[Event "Titled Tuesday Blitz May 4 2021"]
[White "de Leon, Patricia"]
[Black "Coelho, Ramyres Santana"]
[WhiteFideId "3000273"]
[BlackFideId "2120690"]
[WhiteElo "1989"]
[BlackElo "1888"]
[Result "0-1"]
[Round "08"]
[TimeControl "180+1"]
[Date "2021.05.04"]
[WhiteClock "0:00:02"]
[BlackClock "0:00:51"]

1. d4 {[%clk 0:03:00]}  Nf6 {[%clk 0:02:59]} 2. c4 {[%clk 0:03:01]}  g6 {[%clk 0:03:00]} 3. Nc3 {[%clk 0:03:01]}  d5 {[%clk 0:02:59]} 4. Bf4 {[%clk 0:02:59]}  Bg7 {[%clk 0:02:59]} 5. Rc1 {[%clk 0:02:59]}  O-O {[%clk 0:02:58]} 6. Nf3 {[%clk 0:02:58]}  a6 {[%clk 0:02:58]} 7. e3 {[%clk 0:02:56]}  dxc4 {[%clk 0:02:59]} 8. Bxc4 {[%clk 0:02:55]}  b5 {[%clk 0:03:00]} 9. Bb3 {[%clk 0:02:50]}  Bb7 {[%clk 0:03:00]} 10. O-O {[%clk 0:02:47]}  Nbd7 {[%clk 0:02:51]} 11. a3 {[%clk 0:01:58]}  Rc8 {[%clk 0:02:51]} 12. Qe2 {[%clk 0:01:52]}  c5 {[%clk 0:02:51]} 13. dxc5 {[%clk 0:01:36]}  Nxc5 {[%clk 0:02:52]} 14. Bc2 {[%clk 0:01:35]}  Qb6 {[%clk 0:02:51]} 15. Nd4 {[%clk 0:01:23]}  Nd5 {[%clk 0:02:47]} 16. Nxd5 {[%clk 0:01:22]}  Bxd5 {[%clk 0:02:48]} 17. Bb1 {[%clk 0:01:21]}  e5 {[%clk 0:02:47]} 18. Bg5 {[%clk 0:00:55]}  exd4 {[%clk 0:02:45]} 19. exd4 {[%clk 0:00:56]}  Nb3 {[%clk 0:02:33]} 20. Rcd1 {[%clk 0:00:43]}  Nxd4 {[%clk 0:02:27]} 21. Qg4 {[%clk 0:00:43]}  f5 {[%clk 0:02:23]} 22. Qh4 {[%clk 0:00:40]}  Ne2+ {[%clk 0:02:10]} 23. Kh1 {[%clk 0:00:39]}  Qb7 {[%clk 0:02:04]} 24. f3 {[%clk 0:00:36]}  Rc4 {[%clk 0:01:58]} 25. Qf2 {[%clk 0:00:31]}  Nf4 {[%clk 0:01:50]} 26. Rfe1 {[%clk 0:00:28]}  Ne6 {[%clk 0:01:45]} 27. Bc1 {[%clk 0:00:24]}  Bd4 {[%clk 0:01:40]} 28. Qf1 {[%clk 0:00:20]}  Rfc8 {[%clk 0:01:35]} 29. Ba2 {[%clk 0:00:19]}  R4c5 {[%clk 0:01:27]} 30. Bb1 {[%clk 0:00:11]}  Bc4 {[%clk 0:01:21]} 31. Bd3 {[%clk 0:00:08]}  Bd5 {[%clk 0:01:17]} 32. Bh6 {[%clk 0:00:08]}  Bxb2 {[%clk 0:01:13]} 33. Bb1 {[%clk 0:00:03]}  Bg7 {[%clk 0:01:07]} 34. Bxg7 {[%clk 0:00:03]}  Nxg7 {[%clk 0:01:08]} 35. Qe2 {[%clk 0:00:03]}  Bf7 {[%clk 0:01:04]} 36. Qe7 {[%clk 0:00:02]}  R5c7 {[%clk 0:01:03]} 37. Qd6 {[%clk 0:00:02]}  Ne8 {[%clk 0:00:53]} 38. Qe5 {[%clk 0:00:02]}  Ng7 {[%clk 0:00:52]} 39. Qf4 {[%clk 0:00:02]}  Re7 {[%clk 0:00:51]} 40. Rf1 {[%clk 0:00:02]}  Rce8 {[%clk 0:00:51]} 41. h4 {[%clk 0:00:01]}  Qc7 {[%clk 0:00:51]} 42. h5 {[%clk 0:00:02]}  Qxf4 {[%clk 0:00:51]} 0-1


[Site "https://www.chess.com"]

[Event "Titled Tuesday Blitz May 4 2021"]
[White "serhanberat_ozdemir"]
[Black "Sapunov, Evgeny"]
[BlackFideId "4126661"]
[WhiteElo "2640"]
[BlackElo "2470"]
[Result "1-0"]
[Round "08"]
[TimeControl "180+1"]
[Date "2021.05.04"]
[WhiteClock "0:00:02"]
[BlackClock "0:00:02"]

1. e4 {[%clk 0:02:59]}  c5 {[%clk 0:02:59]} 2. Nf3 {[%clk 0:02:58]}  d6 {[%clk 0:03:00]} 3. d4 {[%clk 0:02:58]}  cxd4 {[%clk 0:03:00]} 4. Nxd4 {[%clk 0:02:59]}  Nf6 {[%clk 0:03:00]} 5. Nc3 {[%clk 0:03:00]}  Nc6 {[%clk 0:03:00]} 6. f3 {[%clk 0:03:00]}  Qb6 {[%clk 0:03:00]} 7. Nb3 {[%clk 0:02:37]}  e6 {[%clk 0:02:59]} 8. Qd3 {[%clk 0:02:32]}  a6 {[%clk 0:02:59]} 9. Be3 {[%clk 0:02:32]}  Qc7 {[%clk 0:03:00]} 10. O-O-O {[%clk 0:02:32]}  b5 {[%clk 0:03:00]} 11. g4 {[%clk 0:02:26]}  Ne5 {[%clk 0:02:56]} 12. Qe2 {[%clk 0:02:17]}  Be7 {[%clk 0:02:45]} 13. g5 {[%clk 0:02:12]}  Nfd7 {[%clk 0:02:44]} 14. Qf2 {[%clk 0:02:12]}  Rb8 {[%clk 0:02:42]} 15. h4 {[%clk 0:01:51]}  b4 {[%clk 0:02:42]} 16. Ne2 {[%clk 0:01:50]}  Nc4 {[%clk 0:02:34]} 17. Ned4 {[%clk 0:01:47]}  Nxe3 {[%clk 0:02:20]} 18. Qxe3 {[%clk 0:01:47]}  O-O {[%clk 0:02:20]} 19. Kb1 {[%clk 0:01:45]}  Nc5 {[%clk 0:02:20]} 20. h5 {[%clk 0:01:38]}  Bd7 {[%clk 0:02:14]} 21. g6 {[%clk 0:01:37]}  Bf6 {[%clk 0:02:04]} 22. gxf7+ {[%clk 0:01:15]}  Rxf7 {[%clk 0:02:02]} 23. Bh3 {[%clk 0:01:15]}  Re8 {[%clk 0:02:01]} 24. Rhg1 {[%clk 0:01:08]}  a5 {[%clk 0:01:57]} 25. Nxc5 {[%clk 0:01:07]}  Qxc5 {[%clk 0:01:55]} 26. Qd3 {[%clk 0:00:40]}  a4 {[%clk 0:01:50]} 27. f4 {[%clk 0:00:32]}  h6 {[%clk 0:01:24]} 28. f5 {[%clk 0:00:30]}  exf5 {[%clk 0:01:06]} 29. Nxf5 {[%clk 0:00:30]}  Bxf5 {[%clk 0:01:04]} 30. Bxf5 {[%clk 0:00:22]}  Qe5 {[%clk 0:00:58]} 31. c3 {[%clk 0:00:15]}  bxc3 {[%clk 0:00:56]} 32. Bg6 {[%clk 0:00:12]}  Rb8 {[%clk 0:00:38]} 33. Bxf7+ {[%clk 0:00:11]}  Kxf7 {[%clk 0:00:38]} 34. Rg2 {[%clk 0:00:09]}  a3 {[%clk 0:00:31]} 35. Qd5+ {[%clk 0:00:05]}  Qxd5 {[%clk 0:00:29]} 36. Rxd5 {[%clk 0:00:05]}  axb2 {[%clk 0:00:27]} 37. Rxd6 {[%clk 0:00:04]}  Rb4 {[%clk 0:00:24]} 38. Rc2 {[%clk 0:00:03]}  Be5 {[%clk 0:00:19]} 39. Rd5 {[%clk 0:00:02]}  Rxe4 {[%clk 0:00:18]} 40. Rxe5 {[%clk 0:00:01]}  Rxe5 {[%clk 0:00:19]} 41. Rxc3 {[%clk 0:00:02]}  Rxh5 {[%clk 0:00:19]} 42. Kxb2 {[%clk 0:00:03]}  Ra5 {[%clk 0:00:19]} 43. Kb3 {[%clk 0:00:02]}  g5 {[%clk 0:00:19]} 44. a4 {[%clk 0:00:02]}  g4 {[%clk 0:00:18]} 45. Kb4 {[%clk 0:00:02]}  Ra8 {[%clk 0:00:18]} 46. Rc6 {[%clk 0:00:02]}  Kg7 {[%clk 0:00:16]} 47. a5 {[%clk 0:00:02]}  h5 {[%clk 0:00:16]} 48. a6 {[%clk 0:00:02]}  g3 {[%clk 0:00:13]} 49. Kb5 {[%clk 0:00:02]}  h4 {[%clk 0:00:13]} 50. Rc4 {[%clk 0:00:02]}  Rh8 {[%clk 0:00:11]} 51. a7 {[%clk 0:00:01]}  Kf6 {[%clk 0:00:11]} 52. Kb6 {[%clk 0:00:01]}  Kg5 {[%clk 0:00:10]} 53. Kb7 {[%clk 0:00:02]}  g2 {[%clk 0:00:08]} 54. Rc8 {[%clk 0:00:02]}  Rxc8 {[%clk 0:00:07]} 55. Kxc8 {[%clk 0:00:03]}  g1=Q {[%clk 0:00:08]} 56. a8=Q {[%clk 0:00:03]}  Qc5+ {[%clk 0:00:08]} 57. Kd7 {[%clk 0:00:03]}  Qf5+ {[%clk 0:00:07]} 58. Kc7 {[%clk 0:00:04]}  Qf4+ {[%clk 0:00:07]} 59. Kd7 {[%clk 0:00:04]}  Qf5+ {[%clk 0:00:07]} 60. Kc7 {[%clk 0:00:04]}  h3 {[%clk 0:00:07]} 61. Qg8+ {[%clk 0:00:03]}  Kf4 {[%clk 0:00:06]} 62. Qc4+ {[%clk 0:00:02]}  Qe4 {[%clk 0:00:05]} 63. Qf1+ {[%clk 0:00:02]}  Kg3 {[%clk 0:00:05]} 64. Qg1+ {[%clk 0:00:02]}  Qg2 {[%clk 0:00:06]} 65. Qe1+ {[%clk 0:00:03]}  Kg4 {[%clk 0:00:05]} 66. Qe6+ {[%clk 0:00:02]}  Kf4 {[%clk 0:00:05]} 67. Qd6+ {[%clk 0:00:02]}  Kf3 {[%clk 0:00:05]} 68. Qd1+ {[%clk 0:00:01]}  Kf2 {[%clk 0:00:05]} 69. Qd2+ {[%clk 0:00:01]}  Kg1 {[%clk 0:00:05]} 70. Qe1+ {[%clk 0:00:02]}  Qf1 {[%clk 0:00:05]} 71. Qg3+ {[%clk 0:00:02]}  Kh1 {[%clk 0:00:05]} 72. Kc6 {[%clk 0:00:01]}  h2 {[%clk 0:00:04]} 73. Qg4 {[%clk 0:00:01]}  Qf2 {[%clk 0:00:02]} 74. Kb5 {[%clk 0:00:02]} 1-0


[Site "https://www.chess.com"]

[Event "Titled Tuesday Blitz May 4 2021"]
[White "tylityli"]
[Black "Ivanov, Mike"]
[BlackFideId "2613158"]
[WhiteElo "2344"]
[BlackElo "2197"]
[Result "1-0"]
[Round "08"]
[TimeControl "180+1"]
[Date "2021.05.04"]
[WhiteClock "0:00:02"]
[BlackClock "0:00:01"]

1. d4 {[%clk 0:03:00]}  Nf6 {[%clk 0:02:59]} 2. c4 {[%clk 0:03:00]}  e6 {[%clk 0:03:00]} 3. Nc3 {[%clk 0:03:00]}  Bb4 {[%clk 0:03:00]} 4. e3 {[%clk 0:02:59]}  O-O {[%clk 0:02:59]} 5. Ne2 {[%clk 0:03:00]}  Re8 {[%clk 0:02:59]} 6. a3 {[%clk 0:03:00]}  Bf8 {[%clk 0:02:58]} 7. d5 {[%clk 0:03:00]}  a5 {[%clk 0:02:58]} 8. g3 {[%clk 0:02:59]}  Na6 {[%clk 0:02:58]} 9. Bg2 {[%clk 0:02:58]}  Nc5 {[%clk 0:02:58]} 10. O-O {[%clk 0:02:57]}  a4 {[%clk 0:02:58]} 11. e4 {[%clk 0:02:56]}  exd5 {[%clk 0:02:54]} 12. exd5 {[%clk 0:02:55]}  Nb3 {[%clk 0:02:52]} 13. Rb1 {[%clk 0:02:54]}  Nxc1 {[%clk 0:02:52]} 14. Rxc1 {[%clk 0:02:54]}  d6 {[%clk 0:02:48]} 15. Nd4 {[%clk 0:02:51]}  Bd7 {[%clk 0:02:48]} 16. Re1 {[%clk 0:02:44]}  g6 {[%clk 0:02:45]} 17. Rxe8 {[%clk 0:02:36]}  Qxe8 {[%clk 0:02:46]} 18. Ncb5 {[%clk 0:02:25]}  Qd8 {[%clk 0:02:41]} 19. h3 {[%clk 0:02:16]}  h5 {[%clk 0:02:35]} 20. Qd2 {[%clk 0:02:14]}  Be8 {[%clk 0:01:45]} 21. Re1 {[%clk 0:02:03]}  Nd7 {[%clk 0:01:43]} 22. Rxe8 {[%clk 0:01:46]}  Qxe8 {[%clk 0:01:41]} 23. Nxc7 {[%clk 0:01:46]}  Qc8 {[%clk 0:01:41]} 24. Nxa8 {[%clk 0:01:45]}  Qxa8 {[%clk 0:01:41]} 25. Qb4 {[%clk 0:01:41]}  Nc5 {[%clk 0:01:41]} 26. Qb5 {[%clk 0:01:30]}  Bg7 {[%clk 0:01:35]} 27. Ne2 {[%clk 0:01:12]}  Qd8 {[%clk 0:01:34]} 28. Nc3 {[%clk 0:01:07]}  Qe7 {[%clk 0:01:28]} 29. Kf1 {[%clk 0:00:53]}  Bxc3 {[%clk 0:01:11]} 30. bxc3 {[%clk 0:00:52]}  Qe5 {[%clk 0:01:12]} 31. Qb6 {[%clk 0:00:44]}  Qxc3 {[%clk 0:00:58]} 32. Qd8+ {[%clk 0:00:38]}  Kg7 {[%clk 0:00:58]} 33. Qxd6 {[%clk 0:00:36]}  Qc1+ {[%clk 0:00:58]} 34. Ke2 {[%clk 0:00:35]}  Qxc4+ {[%clk 0:00:59]} 35. Ke1 {[%clk 0:00:22]}  Qc3+ {[%clk 0:00:43]} 36. Kf1 {[%clk 0:00:20]}  Qc1+ {[%clk 0:00:42]} 37. Ke2 {[%clk 0:00:19]}  Qb2+ {[%clk 0:00:39]} 38. Kf1 {[%clk 0:00:17]}  Qa1+ {[%clk 0:00:39]} 39. Ke2 {[%clk 0:00:17]}  Nb3 {[%clk 0:00:38]} 40. Be4 {[%clk 0:00:13]}  Nd4+ {[%clk 0:00:32]} 41. Ke3 {[%clk 0:00:11]}  Nb5 {[%clk 0:00:32]} 42. Qc5 {[%clk 0:00:10]}  Qe1+ {[%clk 0:00:19]} 43. Kf3 {[%clk 0:00:09]}  Nc3 {[%clk 0:00:12]} 44. Qd4+ {[%clk 0:00:07]}  Kh7 {[%clk 0:00:13]} 45. Bd3 {[%clk 0:00:07]}  Qh1+ {[%clk 0:00:11]} 46. Ke3 {[%clk 0:00:06]}  Nxd5+ {[%clk 0:00:11]} 47. Kd2 {[%clk 0:00:05]}  Qg2 {[%clk 0:00:07]} 48. Be4 {[%clk 0:00:04]}  Qf1 {[%clk 0:00:06]} 49. Qxd5 {[%clk 0:00:03]}  Qxf2+ {[%clk 0:00:04]} 50. Kd3 {[%clk 0:00:04]}  Qxg3+ {[%clk 0:00:04]} 51. Kd4 {[%clk 0:00:03]}  Qf2+ {[%clk 0:00:03]} 52. Kd3 {[%clk 0:00:03]}  b6 {[%clk 0:00:04]} 53. Kc4 {[%clk 0:00:01]}  Kh6 {[%clk 0:00:01]} 54. Kb4 {[%clk 0:00:01]}  Qe1+ {[%clk 0:00:01]} 55. Kxa4 {[%clk 0:00:01]}  Qf1 {[%clk 0:00:01]} 56. Kb3 {[%clk 0:00:01]}  Qf2 {[%clk 0:00:02]} 57. Kb4 {[%clk 0:00:01]}  h4 {[%clk 0:00:02]} 58. Kb5 {[%clk 0:00:02]}  g5 {[%clk 0:00:03]} 59. Kc6 {[%clk 0:00:01]}  f6 {[%clk 0:00:03]} 60. Qc4 {[%clk 0:00:02]}  Qf4 {[%clk 0:00:03]} 61. Kd5 {[%clk 0:00:02]}  g4 {[%clk 0:00:03]} 62. Ke6 {[%clk 0:00:02]}  g3 {[%clk 0:00:03]} 63. Qd5 {[%clk 0:00:02]}  g2 {[%clk 0:00:02]} 64. Bxg2 {[%clk 0:00:02]}  Qe3+ {[%clk 0:00:02]} 65. Be4 {[%clk 0:00:02]}  Qxa3 {[%clk 0:00:02]} 66. Qf5 {[%clk 0:00:02]}  Qc5 {[%clk 0:00:01]} 67. Kxf6 {[%clk 0:00:02]} 1-0


[Site "https://www.chess.com"]

[Event "Titled Tuesday Blitz May 4 2021"]
[White "volunteers1998"]
[Black "Vovk, Orest"]
[BlackFideId "14113490"]
[WhiteElo "2230"]
[BlackElo "2203"]
[Result "0-1"]
[Round "08"]
[TimeControl "180+1"]
[Date "2021.05.04"]
[WhiteClock "0:00:04"]
[BlackClock "0:00:30"]

1. e4 {[%clk 0:03:00]}  Nc6 {[%clk 0:03:00]} 2. d4 {[%clk 0:02:59]}  e5 {[%clk 0:02:59]} 3. d5 {[%clk 0:02:56]}  Nce7 {[%clk 0:02:59]} 4. Nc3 {[%clk 0:02:54]}  Ng6 {[%clk 0:02:58]} 5. h4 {[%clk 0:02:51]}  Bc5 {[%clk 0:02:56]} 6. h5 {[%clk 0:02:49]}  Nf8 {[%clk 0:02:55]} 7. Nf3 {[%clk 0:02:41]}  d6 {[%clk 0:02:55]} 8. Bb5+ {[%clk 0:02:35]}  Bd7 {[%clk 0:02:54]} 9. Qe2 {[%clk 0:02:26]}  h6 {[%clk 0:02:51]} 10. Be3 {[%clk 0:02:20]}  Bxe3 {[%clk 0:02:49]} 11. Bxd7+ {[%clk 0:02:18]}  Nxd7 {[%clk 0:02:45]} 12. Qxe3 {[%clk 0:02:14]}  Ngf6 {[%clk 0:02:46]} 13. O-O-O {[%clk 0:02:10]}  Nc5 {[%clk 0:02:39]} 14. Nxe5 {[%clk 0:02:06]}  Qe7 {[%clk 0:02:35]} 15. Nf3 {[%clk 0:02:01]}  O-O {[%clk 0:02:29]} 16. Rde1 {[%clk 0:01:53]}  Rfe8 {[%clk 0:02:23]} 17. Nd4 {[%clk 0:01:49]}  Ng4 {[%clk 0:02:12]} 18. Qf4 {[%clk 0:01:43]}  Ne5 {[%clk 0:02:10]} 19. Kb1 {[%clk 0:01:32]}  b5 {[%clk 0:02:04]} 20. Ndxb5 {[%clk 0:01:23]}  Rab8 {[%clk 0:02:03]} 21. b3 {[%clk 0:01:09]}  a6 {[%clk 0:01:52]} 22. Nd4 {[%clk 0:01:06]}  Rb4 {[%clk 0:01:51]} 23. Nf5 {[%clk 0:01:03]}  Qf6 {[%clk 0:01:47]} 24. Rh3 {[%clk 0:00:55]}  Ned3 {[%clk 0:01:29]} 25. cxd3 {[%clk 0:00:45]}  Qxc3 {[%clk 0:01:28]} 26. Qc1 {[%clk 0:00:41]}  Qf6 {[%clk 0:01:18]} 27. Rg3 {[%clk 0:00:36]}  Kf8 {[%clk 0:01:05]} 28. Rxg7 {[%clk 0:00:34]}  Nxd3 {[%clk 0:01:00]} 29. Qd2 {[%clk 0:00:25]}  Rbxe4 {[%clk 0:00:50]} 30. Rxe4 {[%clk 0:00:23]}  Rxe4 {[%clk 0:00:50]} 31. Qxd3 {[%clk 0:00:20]}  Qxf5 {[%clk 0:00:49]} 32. Rg3 {[%clk 0:00:17]}  Re1+ {[%clk 0:00:44]} 33. Kc2 {[%clk 0:00:15]}  Qxf2+ {[%clk 0:00:43]} 34. Kc3 {[%clk 0:00:14]}  Qc5+ {[%clk 0:00:30]} 35. Qc4 {[%clk 0:00:06]}  Rc1+ {[%clk 0:00:30]} 36. Kb2 {[%clk 0:00:04]}  Rxc4 {[%clk 0:00:30]} 0-1


[Site "https://www.chess.com"]

[Event "Titled Tuesday Blitz May 4 2021"]
[White "Alavkin, Arseny"]
[Black "Acor, Corey"]
[WhiteFideId "4120612"]
[BlackFideId "2024861"]
[WhiteElo "2416"]
[BlackElo "2758"]
[Result "0-1"]
[Round "09"]
[TimeControl "180+1"]
[Date "2021.05.04"]
[WhiteClock "0:00:11"]
[BlackClock "0:00:07"]

1. c4 {[%clk 0:02:57]}  e5 {[%clk 0:02:58]} 2. Nc3 {[%clk 0:02:56]}  Nc6 {[%clk 0:02:58]} 3. Nf3 {[%clk 0:02:52]}  g6 {[%clk 0:02:57]} 4. d4 {[%clk 0:02:48]}  exd4 {[%clk 0:02:57]} 5. Nxd4 {[%clk 0:02:49]}  Bg7 {[%clk 0:02:57]} 6. Nxc6 {[%clk 0:02:49]}  bxc6 {[%clk 0:02:58]} 7. g3 {[%clk 0:02:49]}  Ne7 {[%clk 0:02:58]} 8. Bg2 {[%clk 0:02:50]}  O-O {[%clk 0:02:59]} 9. O-O {[%clk 0:02:50]}  d6 {[%clk 0:02:59]} 10. Bg5 {[%clk 0:02:44]}  Rb8 {[%clk 0:02:47]} 11. Rb1 {[%clk 0:02:41]}  Bf5 {[%clk 0:02:47]} 12. e4 {[%clk 0:02:39]}  Be6 {[%clk 0:02:46]} 13. Qd3 {[%clk 0:02:37]}  h6 {[%clk 0:02:44]} 14. Be3 {[%clk 0:02:35]}  c5 {[%clk 0:02:44]} 15. b3 {[%clk 0:02:31]}  Nc6 {[%clk 0:02:43]} 16. Ne2 {[%clk 0:02:31]}  Ne5 {[%clk 0:02:36]} 17. Qd2 {[%clk 0:02:28]}  Ng4 {[%clk 0:02:35]} 18. Rbd1 {[%clk 0:02:23]}  Nxe3 {[%clk 0:02:34]} 19. Qxe3 {[%clk 0:02:24]}  f5 {[%clk 0:02:33]} 20. exf5 {[%clk 0:02:23]}  Bxf5 {[%clk 0:02:33]} 21. Nf4 {[%clk 0:02:21]}  Qf6 {[%clk 0:02:30]} 22. Nd5 {[%clk 0:02:19]}  Qf7 {[%clk 0:02:25]} 23. Qf4 {[%clk 0:02:12]}  g5 {[%clk 0:02:07]} 24. Qd2 {[%clk 0:01:57]}  Bd4 {[%clk 0:02:03]} 25. Kh1 {[%clk 0:01:55]}  Rbe8 {[%clk 0:01:58]} 26. f4 {[%clk 0:01:55]}  g4 {[%clk 0:01:53]} 27. Rde1 {[%clk 0:01:53]}  Qg7 {[%clk 0:01:28]} 28. Re2 {[%clk 0:01:31]}  h5 {[%clk 0:01:16]} 29. Rfe1 {[%clk 0:01:27]}  Rxe2 {[%clk 0:01:15]} 30. Qxe2 {[%clk 0:01:28]}  Kh8 {[%clk 0:00:56]} 31. Qe7 {[%clk 0:00:47]}  c6 {[%clk 0:00:42]} 32. Qxg7+ {[%clk 0:00:37]}  Kxg7 {[%clk 0:00:43]} 33. Ne7 {[%clk 0:00:38]}  Bh7 {[%clk 0:00:24]} 34. Nxc6 {[%clk 0:00:36]}  Bc3 {[%clk 0:00:20]} 35. Re2 {[%clk 0:00:34]}  Rf7 {[%clk 0:00:17]} 36. Bd5 {[%clk 0:00:34]}  Rc7 {[%clk 0:00:17]} 37. Nd8 {[%clk 0:00:32]}  Bf5 {[%clk 0:00:16]} 38. Kg2 {[%clk 0:00:19]}  Bf6 {[%clk 0:00:15]} 39. Ne6+ {[%clk 0:00:13]}  Bxe6 {[%clk 0:00:16]} 40. Rxe6 {[%clk 0:00:14]}  Rd7 {[%clk 0:00:13]} 41. Bc6 {[%clk 0:00:13]}  Rd8 {[%clk 0:00:14]} 42. f5 {[%clk 0:00:13]}  Be5 {[%clk 0:00:10]} 43. Rg6+ {[%clk 0:00:13]}  Kh7 {[%clk 0:00:10]} 44. Bd5 {[%clk 0:00:12]}  Rf8 {[%clk 0:00:09]} 45. Be6 {[%clk 0:00:12]}  a5 {[%clk 0:00:08]} 46. Kf2 {[%clk 0:00:10]}  Rf6 {[%clk 0:00:08]} 47. Rg5 {[%clk 0:00:10]}  Bd4+ {[%clk 0:00:07]} 48. Ke2 {[%clk 0:00:08]}  Kh6 {[%clk 0:00:08]} 49. Rg8 {[%clk 0:00:09]}  Kh7 {[%clk 0:00:07]} 50. Kd3 {[%clk 0:00:09]}  Be5 {[%clk 0:00:04]} 51. Re8 {[%clk 0:00:06]}  Rh6 {[%clk 0:00:04]} 52. Ke4 {[%clk 0:00:06]}  h4 {[%clk 0:00:03]} 53. gxh4 {[%clk 0:00:06]}  Rxh4 {[%clk 0:00:03]} 54. Re7+ {[%clk 0:00:06]}  Kh6 {[%clk 0:00:03]} 55. Kd5 {[%clk 0:00:06]}  Kg5 {[%clk 0:00:02]} 56. Rg7+ {[%clk 0:00:06]}  Bxg7 {[%clk 0:00:02]} 57. Kxd6 {[%clk 0:00:06]}  Bf8+ {[%clk 0:00:02]} 58. Kd7 {[%clk 0:00:06]}  Rxh2 {[%clk 0:00:03]} 59. Ke8 {[%clk 0:00:07]}  Bg7 {[%clk 0:00:03]} 60. Kf7 {[%clk 0:00:07]}  Bf6 {[%clk 0:00:03]} 61. b4 {[%clk 0:00:06]}  axb4 {[%clk 0:00:03]} 62. Bd5 {[%clk 0:00:06]}  Rxa2 {[%clk 0:00:03]} 63. Ke6 {[%clk 0:00:07]}  b3 {[%clk 0:00:04]} 64. Kd6 {[%clk 0:00:08]}  b2 {[%clk 0:00:05]} 65. Kxc5 {[%clk 0:00:08]}  Ra1 {[%clk 0:00:05]} 66. Kd6 {[%clk 0:00:09]}  b1=Q {[%clk 0:00:06]} 67. Kd7 {[%clk 0:00:10]}  Qb4 {[%clk 0:00:07]} 68. Ke8 {[%clk 0:00:11]}  Qe7# {[%clk 0:00:07]} 0-1


[Site "https://www.chess.com"]

[Event "Titled Tuesday Blitz May 4 2021"]
[White "Aliavdin, Nikolai"]
[Black "Sztokbant, Bernardo Vainzoff"]
[WhiteFideId "13502883"]
[BlackFideId "2115956"]
[WhiteElo "2268"]
[BlackElo "2264"]
[Result "1-0"]
[Round "09"]
[TimeControl "180+1"]
[Date "2021.05.04"]
[WhiteClock "0:00:25"]
[BlackClock "0:00:02"]

1. d4 {[%clk 0:03:00]}  d5 {[%clk 0:02:57]} 2. Bf4 {[%clk 0:02:59]}  Nf6 {[%clk 0:02:53]} 3. Nd2 {[%clk 0:02:57]}  Bf5 {[%clk 0:02:52]} 4. e3 {[%clk 0:02:53]}  e6 {[%clk 0:02:50]} 5. Ngf3 {[%clk 0:02:51]}  Bd6 {[%clk 0:02:47]} 6. Bg3 {[%clk 0:02:50]}  O-O {[%clk 0:02:44]} 7. Bd3 {[%clk 0:02:47]}  Bxd3 {[%clk 0:02:30]} 8. cxd3 {[%clk 0:02:48]}  c5 {[%clk 0:02:30]} 9. dxc5 {[%clk 0:02:40]}  Bxc5 {[%clk 0:02:31]} 10. O-O {[%clk 0:02:40]}  Nc6 {[%clk 0:02:31]} 11. a3 {[%clk 0:02:36]}  Rc8 {[%clk 0:02:30]} 12. b4 {[%clk 0:02:36]}  Bd6 {[%clk 0:02:27]} 13. Nb3 {[%clk 0:02:34]}  Bxg3 {[%clk 0:02:27]} 14. hxg3 {[%clk 0:02:34]}  Qd6 {[%clk 0:02:24]} 15. Qd2 {[%clk 0:02:30]}  b6 {[%clk 0:02:23]} 16. Rac1 {[%clk 0:02:24]}  e5 {[%clk 0:02:17]} 17. b5 {[%clk 0:02:23]}  Ne7 {[%clk 0:02:14]} 18. Qb4 {[%clk 0:02:22]}  Qxb4 {[%clk 0:01:56]} 19. axb4 {[%clk 0:02:23]}  Nd7 {[%clk 0:01:56]} 20. d4 {[%clk 0:02:19]}  e4 {[%clk 0:01:51]} 21. Ne5 {[%clk 0:02:17]}  Nxe5 {[%clk 0:01:48]} 22. dxe5 {[%clk 0:02:18]}  Ng6 {[%clk 0:01:34]} 23. Ra1 {[%clk 0:02:00]}  Rc7 {[%clk 0:01:29]} 24. Rfc1 {[%clk 0:02:00]}  Rfc8 {[%clk 0:01:25]} 25. Rd1 {[%clk 0:01:59]}  Rd7 {[%clk 0:01:12]} 26. e6 {[%clk 0:01:51]}  fxe6 {[%clk 0:01:12]} 27. Nd4 {[%clk 0:01:52]}  Kf7 {[%clk 0:01:02]} 28. Nc6 {[%clk 0:01:52]}  Rcc7 {[%clk 0:01:02]} 29. f4 {[%clk 0:01:49]}  exf3 {[%clk 0:00:58]} 30. gxf3 {[%clk 0:01:49]}  e5 {[%clk 0:00:58]} 31. f4 {[%clk 0:01:49]}  Kf6 {[%clk 0:00:48]} 32. Kf2 {[%clk 0:01:42]}  h5 {[%clk 0:00:36]} 33. Rh1 {[%clk 0:01:41]}  h4 {[%clk 0:00:31]} 34. Kf3 {[%clk 0:01:08]}  hxg3 {[%clk 0:00:30]} 35. Kxg3 {[%clk 0:01:03]}  exf4+ {[%clk 0:00:28]} 36. exf4 {[%clk 0:01:04]}  d4 {[%clk 0:00:27]} 37. Rh5 {[%clk 0:01:03]}  d3 {[%clk 0:00:25]} 38. Rd1 {[%clk 0:01:03]}  Ne7 {[%clk 0:00:21]} 39. Ne5 {[%clk 0:01:00]}  Nf5+ {[%clk 0:00:20]} 40. Kf3 {[%clk 0:00:53]}  Rd4 {[%clk 0:00:14]} 41. Nc6 {[%clk 0:00:44]}  Rd6 {[%clk 0:00:11]} 42. Rd2 {[%clk 0:00:39]}  g6 {[%clk 0:00:10]} 43. Rh8 {[%clk 0:00:37]}  Nd4+ {[%clk 0:00:10]} 44. Nxd4 {[%clk 0:00:32]}  Rxd4 {[%clk 0:00:11]} 45. Ke3 {[%clk 0:00:29]}  Rcc4 {[%clk 0:00:08]} 46. Rf8+ {[%clk 0:00:26]}  Ke7 {[%clk 0:00:07]} 47. Ra8 {[%clk 0:00:25]}  Rxb4 {[%clk 0:00:06]} 48. Rxa7+ {[%clk 0:00:25]}  Ke6 {[%clk 0:00:05]} 49. Rxd3 {[%clk 0:00:25]}  Rxd3+ {[%clk 0:00:03]} 50. Kxd3 {[%clk 0:00:26]}  Rxf4 {[%clk 0:00:02]} 51. Rb7 {[%clk 0:00:25]} 1-0


[Site "https://www.chess.com"]